Cogmind - Beta 11.1 @@@ ROGUE MODE // 2022.07.15 @ 23:46:39 Player: aperiodic Result: Destroyed by 1C-UTU with 1C-UTU's Sword "Lootmaker" Performance ------------- Evolutions (1) 500 Regions Visited (6) 1200 Robots Destroyed (81) 405 Value Destroyed (1449) 1449 Prototype IDs (39) 780 Alien Tech Used (0) 0 Bonus (728) 728 TOTAL SCORE: 5062 Bonus ------- High Alert Combat Kills 236 Follower Combat Kills 209 Aligned with FarCom 300 Friendly Fire -17 Cogmind --------- Core Integrity 0/400 Matter 207/300 Energy 64/100 System Corruption 0% Temperature Cool (19) Movement Core (800) Ox15 Location -8/Mines Parts ------- > --- POWER (1) -------- (None) > --- PROPULSION (2) --- (None) > --- UTILITY (3) ------ High-capacity Storage Unit > --- WEAPON (3) ------- Advanced Assault Cannon > --- INVENTORY (20) --- Advanced Myomer Leg Armored Huge Wheel Experimental Heat Sink High-capacity Matter Pod (139) Makeshift Trap Scanner Improved Armor Integrity Analyzer Advanced Transmission Jammer Light Armor Plating Light Armor Plating Advanced Component Analysis Suite AS-neutralizer No. 17b Improved Medium Laser Improved Medium Laser Improved Medium Laser Minigun Rocket Launcher Mini Grenade Launcher Mining Laser Peak State ------------ > --- POWER ------------ Light Neutrino Core > --- PROPULSION ------- Potential Leg Potential Leg > --- UTILITY ---------- Improved Targeting Computer Cloak of Protection Advanced Component Analysis Suite > --- WEAPON ----------- Minigun Minigun 8R-AWN's Boregun > --- INVENTORY -------- High-capacity Matter Pod Experimental Targeting Computer Light Armor Plating Light Assault Rifle Rocket Launcher [Rating: 62] Favorites ----------- Power Improved Ion Engine Engine Improved Ion Engine Power Core Micro Nuclear Core Propulsion Compact Wheel Leg Potential Leg Wheel Compact Wheel Utility Improved Targeting Computer Device Seismic Detector Storage High-capacity Storage Unit Processor Improved Targeting Computer Protection Medium Armor Plating Weapon Minigun Energy Gun Improved Medium Laser Energy Cannon Advanced Beam Cannon Ballistic Gun Minigun Launcher Rocket Launcher Special Weapon Mining Laser Build | -11 -10 -10 -9 -9 -9 -8 ------- Run | Scr Mat Min Mat Min Exi Min Slots Evolved 2 | . . . 2 . . . Power . | . . . . . . . Propulsion . | . . . . . . . Utility 1 | . . . 1 . . . Weapon 1 | . . . 1 . . . Parts Attached 82 | 7 4 6 34 5 23 3 Power 9 | 1 1 . 4 2 1 . Engine 7 | 1 1 . 4 1 . . Core 2 | . . . . 1 1 . Reactor . | . . . . . . . Propulsion 16 | 2 1 1 5 1 6 . Treads . | . . . . . . . Leg 4 | . . . . . 4 . Wheel 12 | 2 1 1 5 1 2 . Hover . | . . . . . . . Flight . | . . . . . . . Utility 22 | 2 2 . 6 . 10 2 Device 7 | 1 . . . . 6 . Storage 6 | 1 2 . 2 . 1 . Processor 3 | . . . 1 . 2 . Hackware . | . . . . . . . Protection 6 | . . . 3 . 1 2 Artifact . | . . . . . . . Weapon 35 | 2 . 5 19 2 6 1 Energy Gun 1 | . . . 1 . . . Energy Cannon 1 | . . . 1 . . . Ballistic Gun 22 | 2 . 3 12 1 4 . Ballistic Cannon 1 | . . . . . . 1 Launcher 8 | . . 1 4 1 2 . Special Weapon 2 | . . 1 1 . . . Impact Weapon . | . . . . . . . Slashing Weapon . | . . . . . . . Piercing Weapon . | . . . . . . . Special Melee Weapon . | . . . . . . . Unidentified Prototypes 8 | . . . 2 . 6 . Parts Lost 8 | . . . . . 1 7 Power 1 | . . . . . . 1 Propulsion 1 | . . . . . . 1 Utility 2 | . . . . . . 2 Weapon 4 | . . . . . 1 3 Highest Loss Streak 7 | . . . . . 1 7 To Critical Strikes 2 | . . . . . 1 1 Average Slot Usage (%) 97 | . 100 100 99 96 93 86 Engine 7 | . 14 14 10 8 . . Core 3 | . . . . 2 11 11 Leg 4 | . . . . . 13 . Wheel 16 | . 28 28 22 19 4 11 Device 6 | . 14 14 4 . 6 . Storage 9 | . 14 14 11 11 5 11 Processor 9 | . . . 6 11 16 11 Protection 6 | . . . 11 11 3 10 Ballistic Gun 29 | . 28 27 27 33 30 32 Launcher 3 | . . . 4 . 2 . Naked Turns . | . . . . . . . Heaviest Build 67 | 13 28 28 64 63 67 67 Greatest Support 60 | 26 32 32 32 32 60 28 Greatest Overweight (x) 2 | 1 1 1 2 2 2 2 Average Overweight (x) . | . . . 1 1 . 2 Largest Inventory Capacity 20 | 8 15 15 20 20 20 20 Average Capacity 15 | 7 12 15 18 20 12 20 Most Carried 20 | 8 15 15 20 20 20 20 Average Carried 14 | 2 10 14 17 19 10 20 Final Capacity 20 | 8 15 15 20 20 20 20 Final Carried 20 | 8 15 15 19 20 20 19 Class Distribution -------------------- 46% | Gunner 33% | Mutant 9% | Scavenger-Tank 5% | Scavenger-Mutant 3% | Tank Dominant Class ---------------- Mutant | -10/Materials Mutant | -10/Mines Gunner | -9/Materials Gunner | -9/Mines Gunner | -9/Exiles Gunner | -8/Mines Resources | -11 -10 -10 -9 -9 -9 -8 ----------- Run | Scr Mat Min Mat Min Exi Min Matter Collected 2960 | 369 179 142 1106 96 1068 . Remotely . | . . . . . . . Salvage Created 2234 | 150 251 38 1342 27 426 . Parts 193 | 12 19 6 89 6 61 . Haulers Intercepted 4 | . 2 . 2 . . . Recyclers Shooed 6 | . 3 . 3 . . . Parts Field Recycled . | . . . . . . . Retrieved Matter . | . . . . . . . Parts Self-Destructed . | . . . . . . . Prevented . | . . . . . . . Kills | -11 -10 -10 -9 -9 -9 -8 ------- Run | Scr Mat Min Mat Min Exi Min Combat Hostiles Destroyed 43 | . 5 3 29 2 4 . Guns 22 | . 5 . 15 . 2 . AOE 21 | . . 3 14 2 2 . Classes Destroyed 15 | 2 4 2 4 . 3 . Worker 7 | . . 1 5 1 . . Builder 3 | . . 1 2 . . . Tunneler 4 | 4 . . . . . . Hauler 4 | . 2 . 2 . . . Recycler 3 | 1 . . 2 . . . Mechanic 4 | . . . 4 . . . Operator 1 | . . . 1 . . . Turret 1 | . . . . . 1 . Watcher 4 | . 1 . 3 . . . Swarmer 14 | . 3 3 6 2 . . Grunt 19 | . 2 . 17 . . . Brawler 3 | . . . 3 . . . Sentry 3 | . . . 3 . . . Zionite 8 | . . . . . 8 . Assembled 3 | . . . . . 3 . Best Kill Streak 10 | 2 5 3 10 3 5 . Combat Bots Only 6 | . 5 3 6 2 3 . Max Kills in Single Turn 4 | 1 1 2 4 2 2 . Gunslinging . | . . . . . . . Exploded 3 | . . 2 3 1 2 . Melee . | . . . . . . . Uniques/NPCs Destroyed 4 | . . . . . 4 . 8R-AWN (-9/Exiles) EX-HEX (-9/Exiles) EX-BIN (-9/Exiles) EX-DEC (-9/Exiles) Combat | -11 -10 -10 -9 -9 -9 -8 -------- Run | Scr Mat Min Mat Min Exi Min Damage Taken 2455 | . 197 71 723 25 483 956 Core 501 | . 56 8 105 16 29 287 Absorbed by Shields . | . . . . . . . Regen/Repaired (Parts) 116 | . . . 116 . . . Core Remaining (%) 87 | 100 . 74 . . . . Volleys Fired 208 | 22 22 15 74 3 65 7 Largest 3 | 2 2 2 3 3 3 3 Hottest 100 | 40 40 100 100 75 80 80 Shots Fired 477 | 33 44 25 180 5 171 19 Gun 444 | 33 44 20 162 3 163 19 Cannon . | . . . . . . . Launcher 27 | . . 2 15 2 8 . Special 6 | . . 3 3 . . . Kinetic 444 | 33 44 20 162 3 163 19 Thermal 6 | . . 3 3 . . . Explosive 27 | . . 2 15 2 8 . Electromagnetic . | . . . . . . . Robot Hit Streak 27 | 5 7 13 27 3 17 2 Robot Miss Streak 7 | 2 3 2 5 1 7 2 Penetration Max 1 | . . . . . 1 . Secondary Targets 1 | . . . 1 . . . Max Gunslinging Chain 1 | . . . 1 . . . Shots Hit Robots 266 | 20 24 13 96 3 101 9 Core Hits 132 | 5 13 6 66 3 37 2 Critical Kills 3 | . . . . . 3 . Critical Parts Destroyed 4 | 1 . . 1 . 2 . Critical Strikes 9 | 1 . . 1 . 6 1 Destroy 9 | 1 . . 1 . 6 1 Melee Attacks . | . . . . . . . Impact . | . . . . . . . Slashing . | . . . . . . . Piercing . | . . . . . . . Sneak Attacks . | . . . . . . . Combat Hostiles . | . . . . . . . Follow-up Attacks . | . . . . . . . Damage Inflicted 6844 | 258 328 374 3382 239 2103 160 Guns 4297 | 258 328 159 1597 36 1759 160 Cannons . | . . . . . . . Explosions 2547 | . . 215 1785 203 344 . Melee . | . . . . . . . Ramming . | . . . . . . . Kinetic 4297 | 258 328 159 1597 36 1759 160 Thermal . | . . . . . . . Explosive 2547 | . . 215 1785 203 344 . Electromagnetic . | . . . . . . . Impact . | . . . . . . . Slashing . | . . . . . . . Piercing . | . . . . . . . Highest Corruption 1 | . 1 1 . . . . Average Corruption 1 | . 1 1 . . . . Corruption Purged . | . . . . . . . Corruption Blocked . | . . . . . . . Effects 10 | . 2 8 . . . . Message Errors 5 | . 1 4 . . . . Matter Fused 2 | . 1 1 . . . . Heat Flow Errors 1 | . . 1 . . . . Energy Discharges 1 | . . 1 . . . . Data Loss (minor) 1 | . . 1 . . . . Overload Shots . | . . . . . . . Overflow Damage 48 | . . . 48 . . . Projectiles . | . . . . . . . Explosions 48 | . . . 48 . . . Melee . | . . . . . . . Knockbacks . | . . . . . . . Impact . | . . . . . . . Kinetic . | . . . . . . . Secondary . | . . . . . . . Self-Inflicted Damage 29 | . . 29 . . . . Shots 1 | . . 1 . . . . Rammed . | . . . . . . . Targets Rammed . | . . . . . . . Kicked . | . . . . . . . Crushed . | . . . . . . . Highest Temperature 367 | . 20 130 367 36 246 153 Average Temperature 71 | . 7 46 62 23 89 79 Received Heat Transfer 297 | . 90 . 207 . . . Siege Activations . | . . . . . . . Robots Corrupted . | . . . . . . . Combat Hostiles . | . . . . . . . Parts Fried . | . . . . . . . Impact Corruptions . | . . . . . . . Robots Melted . | . . . . . . . Combat Hostiles . | . . . . . . . Parts Melted . | . . . . . . . Heat Transferred . | . . . . . . . Parts Sabotaged . | . . . . . . . Parts Stolen . | . . . . . . . Parts Stripped . | . . . . . . . Power Chain Reactions . | . . . . . . . Missiles Intercepted . | . . . . . . . Alert | -11 -10 -10 -9 -9 -9 -8 ------- Run | Scr Mat Min Mat Min Exi Min Peak Influence 957 | 25 209 230 957 528 . 15 Initial 373 | . 16 81 45 373 . . Average 403 | 11 133 132 527 447 . 4 Maximum Alert Level 3 | . 1 1 3 2 . . Low Security (%) 22 | 100 81 52 5 . . 100 Level 1 29 | . 18 47 26 41 . . Level 2 38 | . . . 52 58 . . Level 3 9 | . . . 16 . . . Level 4 . | . . . . . . . Level 5 . | . . . . . . . High Security . | . . . . . . . Max Security . | . . . . . . . Squads Dispatched 8 | . . . 7 1 . . Investigation 3 | . . . 2 1 . . Extermination . | . . . . . . . Reinforcement 2 | . . . 2 . . . Assault 3 | . . . 3 . . . Garrison . | . . . . . . . Intercept . | . . . . . . . Searches Triggered . | . . . . . . . Construction Impeded 2 | . . . 2 . . . Haulers Reinforced . | . . . . . . . Active Scanning Responses . | . . . . . . . Cargo Convoy Interrupts . | . . . . . . . Stealth | -11 -10 -10 -9 -9 -9 -8 --------- Run | Scr Mat Min Mat Min Exi Min Distress Signals 2 | . . 1 1 . . . Communications Jammed . | . . . . . . . Distress Signals . | . . . . . . . Times Spotted 89 | . 9 7 52 3 17 1 Peak Tracking Total 9 | . 5 3 5 3 9 1 Tactical Retreats 4 | . 1 . 2 . 1 . Traps | -11 -10 -10 -9 -9 -9 -8 ------- Run | Scr Mat Min Mat Min Exi Min Traps Triggered 5 | . 1 . 4 . . . Indirectly . | . . . . . . . Trap Hack Attempts . | . . . . . . . Triggered . | . . . . . . . Disarmed . | . . . . . . . Reprogrammed . | . . . . . . . Reused . | . . . . . . . Traps Extracted . | . . . . . . . Installed . | . . . . . . . Triggered . | . . . . . . . Exploded 3 | . . . . . 3 . Machines | -11 -10 -10 -9 -9 -9 -8 ---------- Run | Scr Mat Min Mat Min Exi Min Machines Disabled 18 | . . . 3 1 13 1 Max in Single Turn 2 | . . . 1 1 2 1 Machines Sabotaged . | . . . . . . . Garrisons Compromised . | . . . . . . . Overloaded Fab Kills . | . . . . . . . Hacking | -11 -10 -10 -9 -9 -9 -8 --------- Run | Scr Mat Min Mat Min Exi Min Machines Accessed 14 | . 1 . 9 1 2 1 Terminals 9 | . 1 . 7 . . 1 Fabricators . | . . . . . . . Repair Stations 1 | . . . 1 . . . Recycling Units 1 | . . . 1 . . . Scanalyzers . | . . . . . . . Garrison Access . | . . . . . . . Total Hacks 35 | . 2 . 28 1 2 2 Successful 18 | . 1 . 12 1 2 2 Failed 16 | . . . 16 . . . Catastrophic 1 | . . . 1 . . . Database Lockouts 1 | . 1 . . . . . Manual 22 | . 2 . 17 . 1 2 Terminals 29 | . 2 . 25 . . 2 Fabricators . | . . . . . . . Repair Stations 2 | . . . 2 . . . Recycling Units 1 | . . . 1 . . . Scanalyzers . | . . . . . . . Garrison Access . | . . . . . . . Terminal Hacks 10 | . 1 . 6 1 2 . Record 1 | . . . . . 1 . Part Schematic 1 | . 1 . . . . . Robot Analysis 2 | . . . 2 . . . Prototype ID Bank 4 | . . . 4 . . . Open Door 1 | . . . . 1 . . EX-Prototype ID Bank 1 | . . . . . 1 . Fabricator Hacks . | . . . . . . . Repair Station Hacks 2 | . . . 2 . . . Scan Component 1 | . . . 1 . . . Repair 1 | . . . 1 . . . Recycling Unit Hacks . | . . . . . . . Scanalyzer . | . . . . . . . Garrison Access Hacks . | . . . . . . . Unauthorized Hacks 6 | . . . 4 . . 2 Terminals 5 | . . . 3 . . 2 Track 1 | . . . . . . 1 Botnet 2 | . . . 2 . . . Disrupt 1 | . . . . . . 1 Operators 1 | . . . 1 . . . Fabricators . | . . . . . . . Repair Stations . | . . . . . . . Recycling Units 1 | . . . 1 . . . Tunnel 1 | . . . 1 . . . Scanalyzers . | . . . . . . . Garrison Access . | . . . . . . . Data Cores Recovered . | . . . . . . . Used . | . . . . . . . Hacking Detections 9 | . 1 . 8 . . . Full Trace Events 2 | . . . 2 . . . Feedback Events . | . . . . . . . Feedback Blocked . | . . . . . . . Robot Schematics Acquired . | . . . . . . . Robots Built . | . . . . . . . Authchips . | . . . . . . . Time . | . . . . . . . Total Robot Build Rating . | . . . . . . . Part Schematics Acquired 1 | . 1 . . . . . Parts Built . | . . . . . . . Authchips . | . . . . . . . Time . | . . . . . . . Total Part Build Rating . | . . . . . . . Parts Repaired 1 | . . . 1 . . . Time 19 | . . . 19 . . . Parts Recycled . | . . . . . . . Recycled Matter . | . . . . . . . Retrieved Matter . | . . . . . . . Retrieved Components . | . . . . . . . Parts Scanalyzed . | . . . . . . . Part Schematics Acquired . | . . . . . . . Parts Damaged . | . . . . . . . Bothacking | -11 -10 -10 -9 -9 -9 -8 ------------ Run | Scr Mat Min Mat Min Exi Min Used RIF Installer . | . . . . . . . Robots Hacked . | . . . . . . . Non-combat . | . . . . . . . Combat . | . . . . . . . Robot Hacks Applied . | . . . . . . . Relay Couplers Released . | . . . . . . . Fabnet Peak Effective % . | . . . . . . . Robots Rewired . | . . . . . . . Allies Hacked . | . . . . . . . Hacks Repelled . | . . . . . . . Allies | -11 -10 -10 -9 -9 -9 -8 -------- Run | Scr Mat Min Mat Min Exi Min Total Allies 5 | . . 2 . 3 . . Largest Group 3 | . . 2 2 3 3 3 Highest-Rated Group 40 | . . 39 39 40 40 40 Highest-Rated Ally 31 | . . 31 31 16 16 16 Total Orders 2 | . . . . . 1 1 STAY 2 | . . . . . 1 1 Ally Attacks 60 | . . 6 31 6 3 14 Total Damage 674 | . . 85 398 27 28 136 Kills 14 | . . 3 9 1 1 . Allies Corrupted . | . . . . . . . Allies Melted . | . . . . . . . Intel | -11 -10 -10 -9 -9 -9 -8 ------- Run | Scr Mat Min Mat Min Exi Min Robot Analysis Total 2 | . . . 2 . . . Derelict Logs Recovered 2 | . . 1 . 1 . . Drone Launches . | . . . . . . . Drone Recoveries . | . . . . . . . Exploration | -11 -10 -10 -9 -9 -9 -8 ------------- Run | Scr Mat Min Mat Min Exi Min Turns Passed 7476 | 176 351 756 3121 599 2360 113 Spaces Moved 4727 | 119 267 556 1427 477 1837 44 Core 10 | 10 . . . . . . Treads . | . . . . . . . Legs 1162 | . . . . . 1162 . Wheels 3555 | 109 267 556 1427 477 675 44 Hover . | . . . . . . . Flight . | . . . . . . . Fastest Speed 50 | 50 90 100 105 115 90 130 Average Speed 109 | 86 97 102 110 118 109 130 Slowest Speed 260 | 100 105 105 120 130 260 130 Overloaded Moves . | . . . . . . . Propulsion Burnouts . | . . . . . . . Robots Hopped . | . . . . . . . Cave-ins Triggered . | . . . . . . . Exploration Rate (%) 58 | 5 44 97 70 96 89 10 Regions Visited 6 Branch Regions 4 Pre-discovered Areas 3 | . . 1 1 . 1 . Known Exits Taken . | . . . . . . . Unknown Exits Taken 6 | 1 1 1 1 1 1 . Scrap Searched 2 | . . 1 . 1 . . Spaces Dug 40 | . . 22 10 . 8 . Terrain Destroyed 208 | . . 24 119 22 43 . Melee . | . . . . . . . Projectile 14 | . . 3 5 . 6 . AOE 194 | . . 21 114 22 37 . Terrain Rammed . | . . . . . . . Walls Destroyed . | . . . . . . . Machines Disabled . | . . . . . . . Actions | -11 -10 -10 -9 -9 -9 -8 --------- Run | Scr Mat Min Mat Min Exi Min Total 6717 | 155 315 710 2857 507 2086 87 Wait 1542 | . 6 126 1287 14 76 33 Move 4721 | 118 266 555 1426 476 1836 44 Hop . | . . . . . . . Pick Up 73 | 8 11 3 12 3 36 . Fast Attach 32 | 7 . . 8 2 13 2 Attach 10 | . 1 . 2 1 5 1 Detach . | . . . . . . . Swap 40 | . 3 6 24 2 5 . Drop 89 | . 6 5 24 6 48 . Fire 208 | 22 22 15 74 3 65 7 Melee . | . . . . . . . Ram . | . . . . . . . Kick . | . . . . . . . Crush . | . . . . . . . Escape Stasis . | . . . . . . . Rewire 2 | . . . . . 2 . Trap . | . . . . . . . Miscellaneous . | . . . . . . . Route ------- -11/Scrapyard -10/Materials (discovered 3 exits: *Mat / [*Min x2]) -10/Mines (discovered 2 exits: *Mat x2) -9/Materials (discovered 3 exits: [*Mat x2] / *Min) -9/Mines (discovered 3 exits: [*Mat x2] / *Exi) -9/Exiles -8/Mines History --------- Turn | Location | Event 20 | -11/Scrapyard | Discovered new exit (range 15) 177 | -11/Scrapyard | Entered Materials 311 | -10/Materials | Build established: Mutant 311 | -10/Materials | Discovered new exit (range 10) 322 | -10/Materials | Discovered new exit (range 14) 395 | -10/Materials | Central database locked down 408 | -10/Materials | Discovered new exit (range 16) 528 | -10/Materials | Entered Mines 714 | -10/Mines | Assembled infested the area 719 | -10/Mines | Assisted by a Guerilla fighting off Assembled 1175 | -10/Mines | Discovered new exit (range 8) 1225 | -10/Mines | Learned Materials terminal intel 1261 | -10/Mines | Discovered new exit (range 6) 1273 | -10/Mines | Learned location of Storage (-7) 1284 | -10/Mines | Entered Materials 1284 | -9/Materials | Accompanied by 2 allies 1284 | -9/Materials | Evolved 2 slots: Utility x1, Weapon x1 1285 | -9/Materials | Loaded intel: 12 terminal locations 1289 | -9/Materials | Led the pair of lost Derelicts to an unsafe place 1712 | -9/Materials | Discovered new exit (range 14) 2212 | -9/Materials | Discovered new exit (range 6) 2307 | -9/Materials | Build established: Scavenger-Tank 2484 | -9/Materials | First assault squad dispatched 2717 | -9/Materials | Discovered new exit (range 15) 3002 | -9/Materials | Repaired Minigun 3298 | -9/Materials | Build established: Gunner 4077 | -9/Materials | Build established: Mutant 4405 | -9/Materials | Entered Mines 4414 | -9/Mines | Assisted by bots powering up and referring to "LRC-V3" 4472 | -9/Mines | Discovered new exit (range 8) 4535 | -9/Mines | Build established: Gunner 4536 | -9/Mines | Discovered new exit (range 12) 4698 | -9/Mines | Deemed a non-threat by the Exiles lab entrance 4698 | -9/Mines | Discovered new exit (range 5) 4763 | -9/Mines | Found a hidden stash of uninstalled traps 4837 | -9/Mines | Met a Derelict shopkeep closing up shop 5004 | -9/Mines | Entered Exiles 5004 | -9/Exiles | Accompanied by 3 allies 5036 | -9/Exiles | Met 8R-AWN 5059 | -9/Exiles | Met EX-HEX 5131 | -9/Exiles | Met EX-DEC 5154 | -9/Exiles | Learned location of Zion (-6) 5202 | -9/Exiles | Discovered new exit (range 10) 5308 | -9/Exiles | Met EX-BIN 5326 | -9/Exiles | Aligned with FarCom system 5327 | -9/Exiles | Given EX-Vault access code 5357 | -9/Exiles | Opened EX-Vault 5366 | -9/Exiles | Found Potential Leg 5369 | -9/Exiles | Found Potential Leg 5371 | -9/Exiles | Found Cloak of Protection 5398 | -9/Exiles | Warned to stay clear of 0b10 Research branches 5881 | -9/Exiles | Build established: Mutant 6161 | -9/Exiles | Attacked by the Exiles 6286 | -9/Exiles | Destroyed 8R-AWN 6295 | -9/Exiles | Found Prototype Device 6295 | -9/Exiles | Identified AS-neutralizer No. 17b 6303 | -9/Exiles | Found Prototype Ballistic Gun 6303 | -9/Exiles | Identified 8R-AWN's Boregun 6379 | -9/Exiles | Found Prototype Processor 6568 | -9/Exiles | Destroyed EX-HEX 6763 | -9/Exiles | Destroyed EX-BIN 6771 | -9/Exiles | Build established: Gunner 6813 | -9/Exiles | Destroyed EX-DEC 6856 | -9/Exiles | Identified Exp. Targeting Computer 7364 | -9/Exiles | Entered Mines 7364 | -8/Mines | Accompanied by 3 allies 7453 | -8/Mines | 1C-UTU came to Exiles' defense 7465 | -8/Mines | Core integrity fell below 50% 7474 | -8/Mines | Core integrity fell below 20% 7477 | -8/Mines | Destroyed by 1C-UTU with 1C-UTU's Sword "Lootmaker" Last Messages --------------- 07466_ HV Slug penetrates 1C-UTU. 07466_ 1C-UTU suffers critical hit (Destroy). 07466_ HV Slug penetrates Laser Drill. 07466_ Laser Drill disabled. 07466_ 1C-UTU follow-up attacks with Prototype Slashing Weapon. 07469_ HV Slug penetrates Wall. 07469_ 8R-AWN's Boregun destroyed. 07470_ Minigun destroyed. 07471_ Lgt. Neutrino Core destroyed. 07472_ Acquired Med. Armor Plating. 07472_ 1C-UTU follow-up attacks with Prototype Slashing Weapon. 07473_ Med. Armor Plating severed. 07473_ Acquired Med. Armor Plating. 07475_ Exp. Targeting Computer destroyed. 07475_ Med. Armor Plating destroyed. 07476_ Minigun destroyed. 07476_ 1C-UTU follow-up attacks with Prototype Slashing Weapon. 07477_ Critical hit (Destroy). 07477_ Arm. Huge Wheel destroyed. 07477_ 1C-UTU follow-up attacks with Prototype Slashing Weapon. Map ----- +----------------------------------------------------+ | ???????????????????? #???????????? | | ???????????????????# #???????????? | | ???????????????????# #???????????? | | ???????????????????# #???????????? | | ???????????????##### #???????????? | | ??????????????## ##??????????? | | ?????####???### #??????????? | | ???### ##?## #??????????? | | ??## ### ##?????????? | | ??# ## #?????????? | | ??# """ #### #????????? | | ??## " " ##??## #????????? | | ???## " " ##????? #????????? | | ????## #?????? #???????? | | ?????#### #?????? #???????? | | ????????# ##??????? ##???????? | | ????????# ####???????? ##????????? | | ????????# #???????????##?????????? | | ????????# ########???????????????? | | ????????# #???????????? | | ????????#!####### #???????????? | | ???######%###????????????????????? | | ???# =[ ##???????????????????? | | ???# T#???????????????????? | | ???# l ##???????????????????? | | ???# @g #????????????????????? | | ???##########????????????????????? | | ?????????????????????????????????? | | ?????????????????????????????????? | | ?????????????????????????????????? | | ?????????????????????????????????? | | ?????????????????????????????????? | | ?????????????????????????????????? | | | | | | | | | | | | | | | | | | | | | | | | | | | | | | | | | | | +----------------------------------------------------+ Best States ------------- Heat Dissipation 54 Energy Generation 19 Energy Capacity 280 Matter Stores 300 Matter Capacity 300 Sight Range 16 Terrain Scan Density 10 Cloak Strength 5 Armor Coverage 225 Evasion (%) 57 Targeting Accuracy 12 Armor Integrity Analysis 30 Item Schematics ----------------- Huge Storage Unit | -10/Materials | Hacked Robot Schematics ------------------ None Fabricated ------------ Nothing Alien Tech Used ----------------- None Achievements -------------- None Challenges ------------ None Game ------ Seed VariableAntimatterAnalyzer Manual? 0 Play Time 00:59:55 Cumulative 573.7 hours Start 2022.07.10 @ 18:11:05 End 2022.07.15 @ 23:46:39 Sessions 7 Manual Loads 0 Difficulty Rogue Special Mode None Game No. 189 Rogue 185 Adventurer 4 Explorer 0 Win Type - Total 15 Types 7/2/4/0/0/0/1/1/0 Lore% 86 Gallery% 88 Achievement% 76 Wizard Run 0 Options --------- ASCII 1 Keyboard 0 Movement Arrows Keybinds 0 Fullscreen 1 Font 18/SmallcapsGlow Map View 76x50 Tactical HUD 1 Map Filters NONE Filters NONE Steam 1 RUN: 88c17dc3-8f57-4a90-907d-e5c189d9a984